fUST/lending_fUST_20250627
["ID","MTS","AMOUNT","RATE_DAILY","PERIOD"]
[368030359,1750999840203,-443.42320512,0.00019178,2]
[368030361,1750999840212,-467.00000007,0.00019178,2]
[368030363,1750999840222,-320.897502,0.00019178,2]
[368030365,1750999840231,-4034.46,0.00019178,2]
[368030367,1750999840240,-464.56,0.00019178,2]
[368030369,1750999840249,-460.0,0.00019178,2]
[368030371,1750999840259,-418.98770392,0.00019178,2]
[368030373,1750999840268,-460.0,0.00019178,2]
[368030375,1750999840277,-460.0,0.00019178,2]
[368030377,1750999840287,-460.0,0.00019178,2]
[368030379,1750999840299,-460.0,0.00019178,2]
[368030381,1750999840310,-460.0,0.00019178,2]
[368030383,1750999840319,-460.0,0.00019178,2]
[368030385,1750999840328,-460.0,0.00019178,2]
[368030403,1750999840493,-1565.51,0.00019178,2]
[368030405,1750999840504,-460.0,0.00019178,2]
[368030408,1750999840514,-460.0,0.00019178,2]
[368030410,1750999840523,-1932.3,0.00019178,2]
[368030412,1750999840532,-460.0,0.00019178,2]
[368030414,1750999840542,-460.0,0.00019178,2]
[368030416,1750999840555,-460.0,0.00019178,2]
[368030418,1750999840564,-460.0,0.00019178,2]
[368030420,1750999840574,-460.0,0.00019178,2]
[368030422,1750999840583,-769.44,0.00019178,2]
[368030424,1750999840592,-460.0,0.00019178,2]
[368030426,1750999840601,-417.18234589,0.00019178,2]
[368030428,1750999840610,-236.28926166,0.00019178,2]
[368030430,1750999840619,-460.0,0.00019178,2]
[368030431,1750999840628,-460.0,0.00019178,2]
[368030434,1750999840638,-422.61235914,0.00019178,2]
[368030436,1750999840647,-460.0,0.00019178,2]
[368030437,1750999840657,-607.12,0.00019178,2]
[368030440,1750999840666,-603.99,0.00019178,2]
[368030442,1750999840675,-603.99,0.00019178,2]
[368030444,1750999840683,-603.99,0.00019178,2]
[368030447,1750999840693,-603.99,0.00019178,2]
[368030448,1750999840702,-603.99,0.00019178,2]
[368030450,1750999840711,-603.99,0.00019178,2]
[368030452,1750999840720,-460.0,0.00019178,2]
[368030455,1750999840729,-692.62,0.00019178,2]
[368030456,1750999840738,-460.0,0.00019178,2]
[368030459,1750999840747,-460.42926759,0.00019178,2]
[368030461,1750999840757,-460.0,0.00019178,2]
[368030463,1750999840766,-460.0,0.00019178,2]
[368030465,1750999840776,-420.86281339,0.00019178,2]
[368030467,1750999840785,-460.0,0.00019178,2]
[368030469,1750999840794,-460.0,0.00019178,2]
[368030470,1750999840805,-460.0,0.00019178,2]
[368030472,1750999840814,-460.0,0.00019178,2]
[368030475,1750999840824,-460.0,0.00019178,2]
[368030476,1750999840833,-460.0,0.00019178,2]
[368030478,1750999840843,-460.0,0.00019178,2]
[368030480,1750999840852,-3255.31,0.00019178,2]
[368030483,1750999840861,-1002.12,0.00019178,2]
[368030485,1750999840870,-245.78948182,0.00019178,2]
[368030487,1750999840879,-1860.43,0.00019178,2]
[368030489,1750999840889,-460.0,0.00019178,2]
[368030490,1750999840898,-460.0,0.00019178,2]
[368030492,1750999840907,-460.0,0.00019178,2]
[368030494,1750999840917,-460.0,0.00019178,2]
[368030496,1750999840927,-460.0,0.00019178,2]
[368030499,1750999840936,-460.0,0.00019178,2]
[368030501,1750999840946,-463.2347657,0.00019178,2]
[368030503,1750999840955,-460.0,0.00019178,2]
[368030505,1750999840965,-1085.41,0.00019178,2]
[368030507,1750999840974,-919.91,0.00019178,2]
[368030509,1750999840983,-460.0,0.00019178,2]
[368030511,1750999840992,-460.0,0.00019178,2]
[368030513,1750999841001,-2262.32,0.00019178,2]
[368030515,1750999841010,-330.85826451,0.00019178,2]
[368030517,1750999841021,-151.0,0.00019205,2]
[368030519,1750999841031,-151.0,0.00019205,2]
[368030521,1750999841040,-151.0,0.00019205,2]
[368030523,1750999841051,-151.0,0.00019205,2]
[368030525,1750999841060,-151.0,0.00019205,2]
[368030527,1750999841070,-151.0,0.00019205,2]
[368030529,1750999841079,-151.0,0.00019205,2]
[368030531,1750999841088,-151.0,0.00019205,2]
[368030533,1750999841097,-151.0,0.00019205,2]
[368030535,1750999841106,-151.0,0.00019205,2]
[368030537,1750999841115,-198.0,0.00019233,2]
[368030539,1750999841125,-198.84604647,0.00019233,2]
[368030541,1750999841134,-198.0,0.00019233,2]
[368030543,1750999841143,-198.66180578,0.00019233,2]
[368030545,1750999841152,-198.94043583,0.00019233,2]
[368030547,1750999841161,-198.0,0.00019233,2]
[368030549,1750999841170,-199.62749451,0.00019233,2]
[368030551,1750999841179,-198.0,0.00019233,2]
[368030553,1750999841188,-198.0,0.00019233,2]
[368030555,1750999841198,-198.72147352,0.00019233,2]
[368030557,1750999841207,-500.0,0.00019326,2]
[368030559,1750999841216,-500.0,0.00019329,2]
[368030561,1750999841225,-500.0,0.00019329,2]
[368030562,1750999841235,-242.18674514,0.00019329,2]
[368030565,1750999841244,-17767.08876448,0.00019329,2]
[368030567,1750999841253,-614.99092968,0.00019352,2]
[368030569,1750999841263,-603.99,0.00019451,2]
[368030572,1750999841281,-603.99,0.00019451,2]
[368030574,1750999841295,-603.99,0.00019451,2]
[368030576,1750999841306,-460.0,0.00019452,2]
[368030578,1750999841316,-460.0,0.00019452,2]
[368030580,1750999841326,-460.0,0.00019452,2]
[368030582,1750999841336,-460.0,0.00019452,2]
[368030584,1750999841346,-430.0,0.00019452,2]
[368030586,1750999841355,-460.0,0.00019452,2]
[368030588,1750999841365,-511.06,0.00019452,2]
[368030590,1750999841374,-460.0,0.00019452,2]
[368030592,1750999841384,-460.0,0.00019452,2]
[368030594,1750999841394,-460.0,0.00019452,2]
[368030596,1750999841404,-460.0,0.00019452,2]
[368030598,1750999841413,-460.0,0.00019452,2]
[368030600,1750999841423,-540.0,0.00019452,2]
[368030602,1750999841433,-460.0,0.00019452,2]
[368030604,1750999841442,-460.0,0.00019452,2]
[368030606,1750999841452,-851.95,0.00019452,2]
[368030609,1750999841462,-460.0,0.00019452,2]
[368030611,1750999841471,-460.0,0.00019452,2]
[368030613,1750999841480,-460.0,0.00019452,2]
[368030615,1750999841491,-781.26,0.00019452,2]
[368030617,1750999841501,-460.0,0.00019452,2]
[368030619,1750999841511,-460.0,0.00019452,2]
[368030621,1750999841521,-460.0,0.00019452,2]
[368030623,1750999841530,-460.0,0.00019452,2]
[368030625,1750999841540,-344.08569836,0.00019452,2]
[368030627,1750999841550,-460.0,0.00019452,2]
[368030629,1750999841559,-460.0,0.00019452,2]
[368030631,1750999841568,-460.0,0.00019452,2]
[368030633,1750999841577,-460.0,0.00019452,2]
[368030635,1750999841587,-401.7493851,0.00019452,2]
[368030637,1750999841596,-460.0,0.00019452,2]
[368030639,1750999841605,-460.0,0.00019452,2]
[368030641,1750999841615,-460.0,0.00019452,2]
[368030643,1750999841624,-460.0,0.00019452,2]
[368030645,1750999841633,-460.0,0.00019452,2]
[368030647,1750999841642,-511.66,0.00019452,2]
[368030649,1750999841652,-460.0,0.00019452,2]
[368030651,1750999841662,-460.0,0.00019452,2]
[368030653,1750999841671,-460.0,0.00019452,2]
[368030655,1750999841681,-460.0,0.00019452,2]
[368030657,1750999841691,-460.0,0.00019452,2]
[368030659,1750999841700,-460.0,0.00019452,2]
[368030661,1750999841710,-755.82,0.00019452,2]
[368030663,1750999841719,-460.0,0.00019452,2]
[368030665,1750999841729,-579.61,0.00019452,2]
[368030668,1750999841739,-460.0,0.00019452,2]
[368030670,1750999841749,-460.0,0.00019452,2]
[368030672,1750999841758,-460.0,0.00019452,2]
[368030674,1750999841767,-582.57,0.00019452,2]
[368030675,1750999841778,-1368.78,0.00019452,2]
[368030677,1750999841787,-460.0,0.00019452,2]
[368030679,1750999841797,-460.0,0.00019452,2]
[368030681,1750999841807,-460.0,0.00019452,2]
[368030683,1750999841816,-460.0,0.00019452,2]
[368030685,1750999841826,-412.37686144,0.00019452,2]
[368030687,1750999841835,-558.64,0.00019452,2]
[368030689,1750999841844,-460.0,0.00019452,2]
[368030692,1750999841854,-460.0,0.00019452,2]
[368030694,1750999841863,-465.47283519,0.00019452,2]
[368030696,1750999841872,-460.0,0.00019452,2]
[368030698,1750999841882,-525.28,0.00019452,2]
[368030700,1750999841891,-460.0,0.00019452,2]
[368030702,1750999841901,-460.0,0.00019452,2]
[368030704,1750999841910,-698.59,0.00019452,2]
[368030706,1750999841920,-1698.41,0.00019452,2]
[368030708,1750999841930,-460.0,0.00019452,2]
[368030710,1750999841939,-460.0,0.00019452,2]
[368030712,1750999841948,-516.57,0.00019452,2]
[368030714,1750999841958,-460.0,0.00019452,2]
[368030715,1750999841968,-1646.94,0.00019452,2]
[368030717,1750999841977,-538.65,0.00019452,2]
[368030719,1750999841987,-460.0,0.00019452,2]
[368030722,1750999841996,-464.71,0.00019452,2]
[368030724,1750999842006,-2283.74,0.00019452,2]
[368030726,1750999842015,-460.0,0.00019452,2]
[368030728,1750999842025,-460.0,0.00019452,2]
[368030730,1750999842034,-225.1590052,0.00019452,2]
[368030732,1750999842044,-460.0,0.00019452,2]
[368030734,1750999842054,-460.0,0.00019452,2]
[368030736,1750999842063,-460.0,0.00019452,2]
[368030738,1750999842073,-284.58042346,0.00019452,2]
[368030740,1750999842083,-1208.66,0.00019452,2]
[368030742,1750999842093,-460.0,0.00019452,2]
[368030744,1750999842102,-460.0,0.00019452,2]
[368030746,1750999842112,-460.0,0.00019452,2]
[368030748,1750999842121,-837.04,0.00019452,2]
[368030750,1750999842130,-1824.86,0.00019452,2]
[368030752,1750999842140,-2140.66,0.00019452,2]
[368030754,1750999842149,-730.84,0.00019452,2]
[368030756,1750999842158,-789.54,0.00019452,2]
[368030758,1750999842168,-460.0,0.00019452,2]
[368030760,1750999842177,-460.0,0.00019452,2]
[368030762,1750999842187,-460.0,0.00019452,2]
[368030764,1750999842196,-608.35,0.00019452,2]
[368030766,1750999842206,-460.0,0.00019452,2]
[368030768,1750999842215,-460.0,0.00019452,2]
[368030770,1750999842224,-460.0,0.00019452,2]
[368030772,1750999842234,-582.08,0.00019452,2]
[368030774,1750999842243,-460.0,0.00019452,2]
[368030776,1750999842252,-460.0,0.00019452,2]
[368030778,1750999842262,-460.0,0.00019452,2]
[368030780,1750999842271,-460.0,0.00019452,2]
[368030782,1750999842280,-460.0,0.00019452,2]
[368030784,1750999842290,-460.0,0.00019452,2]
[368030786,1750999842300,-441.28166404,0.00019452,2]
[368030788,1750999842309,-460.0,0.00019452,2]
[368030790,1750999842319,-460.0,0.00019452,2]
[368030792,1750999842328,-460.0,0.00019452,2]
[368030794,1750999842337,-460.0,0.00019452,2]
[368030796,1750999842346,-499.37445967,0.00019452,2]
[368030798,1750999842356,-460.0,0.00019452,2]
[368030800,1750999842365,-460.0,0.00019452,2]
[368030802,1750999842374,-1486.78,0.00019452,2]
[368030804,1750999842383,-503.6,0.00019452,2]
[368030806,1750999842393,-746.29,0.00019452,2]
[368030808,1750999842402,-460.0,0.00019452,2]
[368030810,1750999842415,-460.0,0.00019452,2]
[368030812,1750999842424,-465.99113209,0.00019452,2]
[368030814,1750999842434,-2370.59,0.00019452,2]
[368030816,1750999842444,-4034.46,0.00019452,2]
[368030818,1750999842454,-464.56,0.00019452,2]
[368030820,1750999842464,-460.0,0.00019452,2]
[368030822,1750999842474,-460.0,0.00019452,2]
[368030824,1750999842486,-460.0,0.00019452,2]
[368030827,1750999842496,-460.0,0.00019452,2]
[368030828,1750999842506,-1565.51,0.00019452,2]
[368030830,1750999842517,-460.0,0.00019452,2]
[368030833,1750999842526,-1932.3,0.00019452,2]
[368030835,1750999842536,-460.0,0.00019452,2]
[368030837,1750999842545,-769.44,0.00019452,2]
[368030839,1750999842556,-460.0,0.00019452,2]
[368030841,1750999842565,-607.12,0.00019452,2]
[368030843,1750999842575,-509.57744576,0.00019452,2]
[368030845,1750999842585,-460.0,0.00019452,2]
[368030847,1750999842594,-692.62,0.00019452,2]
[368030849,1750999842604,-460.0,0.00019452,2]
[368030851,1750999842613,-460.0,0.00019452,2]
[368030853,1750999842622,-460.0,0.00019452,2]
[368030855,1750999842632,-460.0,0.00019452,2]
[368030857,1750999842641,-460.0,0.00019452,2]
[368030859,1750999842650,-606.5209391,0.00019452,2]
[368030862,1750999842668,-481.67326524,0.00019452,2]
[368030868,1750999842716,-2167.11579566,0.00019452,2]
[368030870,1750999842726,-1002.12,0.00019452,2]
[368030872,1750999842736,-1860.43,0.00019452,2]
[368030874,1750999842747,-460.0,0.00019452,2]
[368030877,1750999842758,-460.0,0.00019452,2]
[368030880,1750999842768,-460.0,0.00019452,2]
[368030882,1750999842778,-1085.41,0.00019452,2]
[368030884,1750999842788,-919.91,0.00019452,2]
[368030886,1750999842798,-460.0,0.00019452,2]
[368030888,1750999842812,-460.0,0.00019452,2]
[368030890,1750999842823,-2262.32,0.00019452,2]
[368030892,1750999842832,-500.0,0.00019693,2]
[368030894,1750999842842,-500.0,0.00019693,2]
[368030896,1750999842852,-500.75103326,0.00019693,2]
[368030898,1750999842862,-500.0,0.00019693,2]
[368030900,1750999842872,-500.0,0.00019693,2]
[368030902,1750999842882,-500.36063158,0.00019693,2]
[368030904,1750999842892,-500.0,0.00019719,2]
[368030906,1750999842902,-603.99,0.00019725,2]
[368030908,1750999842911,-603.99,0.00019725,2]
[368030911,1750999842920,-603.99,0.00019725,2]
[368030914,1750999842929,-603.99,0.00019725,2]
[368030916,1750999842939,-500.0,0.00019726,2]
[368030918,1750999842948,-450.11997304,0.00019726,2]
[368030920,1750999842958,-390.37699867,0.00019726,2]
[368030922,1750999842968,-460.0,0.00019726,2]
[368030924,1750999842977,-460.0,0.00019726,2]
[368030926,1750999842987,-511.06,0.00019726,2]
[368030928,1750999842997,-578.16041718,0.00019726,2]
[368030930,1750999843006,-460.0,0.00019726,2]
[368030932,1750999843016,-460.0,0.00019726,2]
[368030934,1750999843026,-460.0,0.00019726,2]
[368030936,1750999843035,-460.0,0.00019726,2]
[368030938,1750999843047,-460.0,0.00019726,2]
[368030940,1750999843060,-460.0,0.00019726,2]
[368030942,1750999843070,-851.95,0.00019726,2]
[368030943,1750999843079,-460.0,0.00019726,2]
[368030946,1750999843089,-460.0,0.00019726,2]
[368030948,1750999843098,-781.26,0.00019726,2]
[368030949,1750999843108,-460.0,0.00019726,2]
[368030952,1750999843117,-460.0,0.00019726,2]
[368030954,1750999843128,-460.0,0.00019726,2]
[368030955,1750999843137,-460.0,0.00019726,2]
[368030958,1750999843147,-460.0,0.00019726,2]
[368030960,1750999843156,-460.0,0.00019726,2]
[368030961,1750999843166,-460.0,0.00019726,2]
[368030964,1750999843176,-460.0,0.00019726,2]
[368030966,1750999843185,-460.0,0.00019726,2]
[368030968,1750999843194,-511.66,0.00019726,2]
[368030970,1750999843203,-460.0,0.00019726,2]
[368030972,1750999843212,-460.0,0.00019726,2]
[368030974,1750999843222,-460.0,0.00019726,2]
[368030976,1750999843231,-460.0,0.00019726,2]
[368030978,1750999843240,-460.0,0.00019726,2]
[368030980,1750999843250,-460.0,0.00019726,2]
[368030982,1750999843259,-755.82,0.00019726,2]
[368030984,1750999843268,-460.0,0.00019726,2]
[368030986,1750999843277,-579.61,0.00019726,2]
[368030988,1750999843287,-460.0,0.00019726,2]
[368030990,1750999843296,-460.0,0.00019726,2]
[368030992,1750999843307,-460.0,0.00019726,2]
[368030994,1750999843316,-582.57,0.00019726,2]
[368030996,1750999843325,-1368.78,0.00019726,2]
[368030998,1750999843334,-460.0,0.00019726,2]
[368031000,1750999843344,-460.0,0.00019726,2]
[368031002,1750999843353,-460.0,0.00019726,2]
[368031004,1750999843362,-460.0,0.00019726,2]
[368031006,1750999843371,-558.64,0.00019726,2]
[368031008,1750999843380,-460.0,0.00019726,2]
[368031009,1750999843389,-460.0,0.00019726,2]
[368031011,1750999843399,-525.28,0.00019726,2]
[368031013,1750999843408,-460.0,0.00019726,2]
[368031016,1750999843421,-468.0735199,0.00019726,2]
[368031018,1750999843430,-698.59,0.00019726,2]
[368031020,1750999843439,-1698.41,0.00019726,2]
[368031022,1750999843448,-460.0,0.00019726,2]
[368031023,1750999843457,-460.0,0.00019726,2]
[368031025,1750999843467,-516.57,0.00019726,2]
[368031028,1750999843477,-460.0,0.00019726,2]
[368031031,1750999843486,-1646.94,0.00019726,2]
[368031033,1750999843496,-538.65,0.00019726,2]
[368031035,1750999843506,-460.0,0.00019726,2]
[368031037,1750999843516,-464.71,0.00019726,2]
[368031039,1750999843525,-2283.74,0.00019726,2]
[368031041,1750999843534,-460.0,0.00019726,2]
[368031044,1750999843544,-460.0,0.00019726,2]
[368031047,1750999843555,-460.0,0.00019726,2]
[368031049,1750999843564,-460.0,0.00019726,2]
[368031051,1750999843573,-460.0,0.00019726,2]
[368031067,1750999843716,-1208.66,0.00019726,2]
[368031069,1750999843727,-460.0,0.00019726,2]
[368031071,1750999843736,-460.0,0.00019726,2]
[368031073,1750999843745,-837.04,0.00019726,2]
[368031075,1750999843755,-1824.86,0.00019726,2]
[368031077,1750999843764,-2140.66,0.00019726,2]
[368031079,1750999843773,-730.84,0.00019726,2]
[368031081,1750999843783,-789.54,0.00019726,2]
[368031083,1750999843792,-460.0,0.00019726,2]
[368031085,1750999843803,-608.35,0.00019726,2]
[368031087,1750999843812,-460.0,0.00019726,2]
[368031089,1750999843822,-460.0,0.00019726,2]
[368031091,1750999843831,-460.0,0.00019726,2]
[368031093,1750999843840,-582.08,0.00019726,2]
[368031095,1750999843849,-516.92,0.00019726,2]
[368031096,1750999843859,-460.0,0.00019726,2]
[368031098,1750999843869,-460.0,0.00019726,2]
[368031100,1750999843878,-460.0,0.00019726,2]
[368031102,1750999843887,-178.57979428,0.00019726,2]
[368031104,1750999843897,-460.0,0.00019726,2]
[368031106,1750999843907,-460.0,0.00019726,2]
[368031108,1750999843917,-460.0,0.00019726,2]
[368031110,1750999843927,-460.0,0.00019726,2]
[368031112,1750999843936,-1486.78,0.00019726,2]
[368031114,1750999843946,-503.6,0.00019726,2]
[368031116,1750999843955,-746.29,0.00019726,2]
[368031118,1750999843965,-460.0,0.00019726,2]
[368031120,1750999843974,-2370.59,0.00019726,2]
[368031122,1750999843984,-4034.46,0.00019726,2]
[368031124,1750999843993,-464.56,0.00019726,2]
[368031127,1750999844002,-460.0,0.00019726,2]
[368031130,1750999844012,-460.0,0.00019726,2]
[368031132,1750999844022,-460.0,0.00019726,2]
[368031134,1750999844031,-1565.51,0.00019726,2]
[368031136,1750999844041,-460.0,0.00019726,2]
[368031138,1750999844051,-1932.3,0.00019726,2]
[368031140,1750999844061,-460.0,0.00019726,2]
[368031142,1750999844070,-769.44,0.00019726,2]
[368031144,1750999844080,-607.12,0.00019726,2]
[368031146,1750999844089,-692.62,0.00019726,2]
[368031148,1750999844099,-460.0,0.00019726,2]
[368031149,1750999844108,-460.0,0.00019726,2]
[368031151,1750999844117,-460.0,0.00019726,2]
[368031153,1750999844127,-3255.31,0.00019726,2]
[368031155,1750999844136,-1002.12,0.00019726,2]
[368031157,1750999844145,-1860.43,0.00019726,2]
[368031159,1750999844155,-460.0,0.00019726,2]
[368031161,1750999844165,-460.0,0.00019726,2]
[368031163,1750999844174,-1085.41,0.00019726,2]
[368031165,1750999844183,-919.91,0.00019726,2]
[368031167,1750999844192,-460.0,0.00019726,2]
[368031169,1750999844203,-2262.32,0.00019726,2]
[368031171,1750999844212,-500.0,0.00019761,2]
[368031173,1750999844221,-500.81019278,0.00019761,2]
[368031175,1750999844230,-501.01939852,0.00019761,2]
[368031177,1750999844239,-501.15283848,0.00019761,2]
[368031179,1750999844249,-500.0,0.00019765,2]
[368031181,1750999844258,-500.0,0.00019765,2]
[368031183,1750999844267,-500.0,0.00019765,2]
[368031185,1750999844276,-500.0,0.00019773,2]
[368031186,1750999844285,-160.46873652,0.00019773,2]
[368031189,1750999844295,-500.85840275,0.00019779,2]
[368031190,1750999844306,-25000.0,0.00019865,2]
[368031192,1750999844315,-666.0,0.00019865,2]
[368031194,1750999844325,-505.25517257,0.00019865,2]
[368031196,1750999844334,-151.0,0.00019865,2]
[368031198,1750999844343,-151.0,0.00019865,2]
[368031200,1750999844352,-5000.0,0.00019865,2]
[368031202,1750999844362,-151.0,0.00019865,2]
[368031204,1750999844371,-151.0,0.00019865,2]
[368031206,1750999844381,-207.4,0.00019865,2]
[368031208,1750999844390,-275.86690619,0.00019865,2]
[368031210,1750999844399,-151.0,0.00019865,2]
[368031212,1750999844409,-237.25150823,0.00019865,2]
[368031214,1750999844421,-151.0,0.00019865,2]
[368031216,1750999844430,-151.0,0.00019865,2]
[368031218,1750999844438,-277.6118644,0.00019865,2]
[368031220,1750999844448,-151.0,0.00019865,2]
[368031222,1750999844458,-151.0,0.00019865,2]
[368031224,1750999844467,-199.98954325,0.00019865,2]
[368031226,1750999844476,-230.26210603,0.00019884,2]
[368031228,1750999844485,-160.0,0.00019884,2]
[368031229,1750999844496,-213.75309343,0.00019884,2]
[368031231,1750999844506,-160.0,0.00019884,2]
[368031233,1750999844516,-12562.41216491,0.00019884,2]
[368031235,1750999844525,-847.04181546,0.00019884,2]
[368031237,1750999844535,-836.98798914,0.00019884,2]
[368031239,1750999844544,-214.91804724,0.00019884,2]
[368031241,1750999844554,-160.0,0.00019884,2]
[368031243,1750999844563,-160.0,0.00019884,2]
[368031245,1750999844573,-160.0,0.00019884,2]
[368031247,1750999844582,-160.0,0.00019884,2]
[368031249,1750999844591,-160.0,0.00019884,2]
[368031251,1750999844601,-160.0,0.00019884,2]
[368031253,1750999844610,-160.0,0.00019884,2]
[368031255,1750999844619,-603.99,0.00019899,2]
[368031257,1750999844628,-7751.5646834,0.000199,2]
[368031259,1750999844638,-690.642,0.0001992,2]
[368031261,1750999844647,-716.195754,0.00019975,2]
[368031263,1750999844657,-614.99092968,0.00019989,2]
[368031265,1750999844666,-603.99,0.00019989,2]
[368031266,1750999844676,-603.99,0.00019999,2]
[368031268,1750999844685,-603.99,0.00019999,2]
[368031270,1750999844695,-603.99,0.00019999,2]
[368031272,1750999844705,-603.99,0.00019999,2]
[368031274,1750999844714,-460.0,0.0002,2]
[368031276,1750999844724,-4291.0,0.0002,2]
[368031278,1750999844733,-460.0,0.0002,2]
[368031280,1750999844743,-511.06,0.0002,2]
[368031282,1750999844753,-460.0,0.0002,2]
[368031284,1750999844763,-460.0,0.0002,2]
[368031286,1750999844773,-460.0,0.0002,2]
[368031288,1750999844782,-460.0,0.0002,2]
[368031290,1750999844792,-460.0,0.0002,2]
[368031292,1750999844801,-851.95,0.0002,2]
[368031294,1750999844811,-460.0,0.0002,2]
[368031296,1750999844820,-460.0,0.0002,2]
[368031298,1750999844830,-781.26,0.0002,2]
[368031300,1750999844839,-460.0,0.0002,2]
[368031302,1750999844848,-460.0,0.0002,2]
[368031304,1750999844858,-460.0,0.0002,2]
[368031306,1750999844867,-460.0,0.0002,2]
[368031308,1750999844877,-460.0,0.0002,2]
[368031310,1750999844886,-460.0,0.0002,2]
[368031312,1750999844896,-460.0,0.0002,2]
[368031314,1750999844905,-460.0,0.0002,2]
[368031315,1750999844914,-460.0,0.0002,2]
[368031317,1750999844923,-511.66,0.0002,2]
[368031319,1750999844933,-238.73031473,0.0002,2]
[368031321,1750999844943,-460.0,0.0002,2]
[368031323,1750999844952,-460.0,0.0002,2]
[368031325,1750999844962,-460.0,0.0002,2]
[368031327,1750999844972,-460.0,0.0002,2]
[368031329,1750999844981,-755.82,0.0002,2]
[368031331,1750999844991,-476.44649756,0.0002,2]
[368031333,1750999845000,-579.61,0.0002,2]
[368031335,1750999845009,-460.0,0.0002,2]
[368031336,1750999845018,-460.0,0.0002,2]
[368031338,1750999845027,-460.0,0.0002,2]
[368031340,1750999845037,-582.57,0.0002,2]
[368031342,1750999845046,-1368.78,0.0002,2]
[368031344,1750999845057,-195.48,0.0002,2]
[368031346,1750999845068,-460.0,0.0002,2]
[368031348,1750999845077,-460.0,0.0002,2]
[368031350,1750999845087,-558.64,0.0002,2]
[368031352,1750999845097,-460.0,0.0002,2]
[368031354,1750999845107,-460.0,0.0002,2]
[368031356,1750999845117,-525.28,0.0002,2]
[368031358,1750999845126,-460.0,0.0002,2]
[368031360,1750999845135,-1698.41,0.0002,2]
[368031362,1750999845145,-698.59,0.0002,2]
[368031364,1750999845154,-460.0,0.0002,2]
[368031366,1750999845164,-460.0,0.0002,2]
[368031368,1750999845173,-516.57,0.0002,2]
[368031370,1750999845184,-460.0,0.0002,2]
[368031372,1750999845193,-1646.94,0.0002,2]
[368031374,1750999845202,-538.65,0.0002,2]
[368031376,1750999845211,-460.0,0.0002,2]
[368031377,1750999845220,-464.71,0.0002,2]
[368031379,1750999845230,-2283.74,0.0002,2]
[368031381,1750999845239,-460.0,0.0002,2]
[368031383,1750999845248,-460.0,0.0002,2]
[368031385,1750999845257,-460.0,0.0002,2]
[368031387,1750999845267,-1208.66,0.0002,2]
[368031389,1750999845276,-460.0,0.0002,2]
[368031391,1750999845285,-460.0,0.0002,2]
[368031393,1750999845294,-837.04,0.0002,2]
[368031395,1750999845304,-1824.86,0.0002,2]
[368031397,1750999845314,-2140.66,0.0002,2]
[368031399,1750999845323,-730.84,0.0002,2]